bitfinex-derivatives/quotes_ETHF0:USTF0_20250616
["timestamp","ask_amount","ask_price","bid_price","bid_amount"]
[1750055504008,0.76559,2611.9,2611.4,0.76571]
[1750055504207,0.76561,2611.8,2611.5,1.2819]
[1750055504408,0.76564,2611.7,2611.5,1.2819]
[1750055504608,0.76562,2611.8,2611.5,1.2819]
[1750055504806,0.77133614,2611.9,2611.5,1.2819]
[1750055505309,0.76561,2611.8,2611.5,2.04759]
[1750055505811,0.77134614,2611.9,2611.5,2.04759]
[1750055506409,0.76561,2611.8,2611.5,2.04759]
[1750055506814,0.77134614,2611.9,2611.5,2.25579]
[1750055507009,0.77134614,2611.9,2611.6,0.76566]
[1750055507215,0.00574614,2611.9,2611.8,0.76561]
[1750055507611,0.00574614,2611.9,2611.8,5.76561]
[1750055507909,0.00574614,2611.9,2611.8,47.87201]
[1750055510514,9.8258,2612.7,2611.8,51.61085]
[1750055510714,9.8258,2612.7,2612.5,0.76539]
[1750055511215,10.59115,2612.7,2612.4,0.76541]
[1750055511516,9.8258,2612.7,2612.5,0.7654]
[1750055513118,3.2078,2612.7,2612.6,0.76537]
[1750055513616,0.00574614,2612.8,2612.7,0.76534]
[1750055513818,3.2078,2613.4,2613.1,0.76522]
[1750055514011,3.2078,2613.4,2612.8,0.6646]
[1750055514323,3.2078,2613.4,2613.3,0.76517]
[1750055515318,3.2078,2613.4,2613.1,0.00574614]
[1750055515820,3.2078,2613.4,2613.2,0.76519]
[1750055516820,3.2078,2613.4,2613.1,0.00574614]
[1750055517024,3.2078,2613.4,2613.2,0.76518]
[1750055517319,3.2078,2613.4,2613.1,0.00574614]
[1750055517320,3.97296,2613.4,2613.1,0.77095614]
[1750055518515,3.97296,2613.4,2613.2,0.76519]
[1750055518823,3.97296,2613.4,2613.1,0.00574614]
[1750055519719,0.76517,2613.3,2613.1,0.00574614]
[1750055520218,0.76517,2613.3,2613.2,0.02583698]
[1750055521226,2.05607,2613.3,2613.2,0.02583698]
[1750055521924,0.71352604,2613.2,2613.1,0.00574614]
[1750055522826,0.76537,2612.6,2612.5,3.2078]
[1750055527833,7.38033,2612.8,2612.6,0.76537]
[1750055528020,6.615,2612.8,2612.6,0.76537]
[1750055528326,7.38033,2612.8,2612.5,3.97319]
[1750055528519,8.60643,2612.8,2612.5,3.2078]
[1750055528726,7.8411,2612.8,2612.5,3.2078]
[1750055529230,1.3838,2612.9,2612.5,3.2078]
[1750055529422,1.3838,2612.9,2612.6,0.76535]
[1750055529622,1.3838,2612.9,2612.7,0.76534]
[1750055529824,1.8446,2612.9,2612.8,0.76532]
[1750055530121,0.76526,2613.0,2612.5,5.12129]
[1750055530326,0.76526,2613.0,2612.8,0.7653]
[1750055530528,0.76526,2613.0,2612.8,0.76529]
[1750055530828,0.6566,2613.1,2612.6,3.8678]
[1750055531015,0.6566,2613.1,2613.0,0.76526]
[1750055531418,6.51,2613.3,2613.0,0.76524]
[1750055531614,0.76521,2613.2,2613.0,0.76524]
[1750055531820,0.76521,2613.2,2612.9,0.76527]
[1750055532020,0.76523,2613.1,2612.9,0.76527]
[1750055532432,0.76521,2613.2,2613.0,0.76526]
[1750055532617,0.76521,2613.2,2612.6,2.6196]
[1750055532618,2.04489,2613.3,2613.1,0.76522]
[1750055532821,1.2797,2613.3,2612.8,3.2078]
[1750055533025,1.2797,2613.3,2613.2,0.7652]
[1750055533229,2.04487,2613.3,2613.1,0.76521]
[1750055533923,1.2797,2613.3,2613.0,0.76524]
[1750055534123,0.7652,2613.2,2613.0,0.76524]
[1750055534325,2.04489,2613.3,2613.0,0.76524]
[1750055534523,1.2797,2613.3,2613.1,0.76523]
[1750055534724,2.04488,2613.3,2613.1,0.76523]
[1750055534933,1.2797,2613.3,2613.1,0.76523]
[1750055535126,2.04489,2613.3,2613.1,0.76523]
[1750055535430,0.76535,2612.7,2612.5,5.4703495]
[1750055535733,7.71225,2612.8,2612.4,0.798]
[1750055535932,1.44027,2612.7,2612.4,1.56342]
[1750055536130,2.76787,2612.7,2612.4,1.56342]
[1750055536536,2.0025,2612.7,2612.6,0.76538]
[1750055536727,0.6749,2612.7,2612.6,0.76538]
[1750055537234,1.44026,2612.7,2612.5,0.7654]
[1750055537536,2.76786,2612.7,2612.5,0.7654]
[1750055537834,2.0025,2612.7,2612.6,0.76538]
[1750055538735,0.6749,2612.7,2612.6,0.76538]
[1750055539835,0.76524,2613.1,2612.6,0.76538]
[1750055539836,3.97295,2613.4,2612.7,1.91338]
[1750055540039,0.76517,2613.3,2612.7,4.5445]
[1750055540237,4.58786,2613.4,2612.7,5.8667]
[1750055540546,1.2527,2613.3,2613.1,0.76522]
[1750055540836,1.2527,2613.3,2612.8,41.56531]
[1750055541137,1.2527,2613.3,2612.8,40.8]
[1750055541324,3.2078,2613.1,2612.5,2.2625495]
[1750055541529,2.02157,2613.0,2612.4,12.7773495]
[1750055541731,1.2563,2613.0,2612.4,12.7773495]
[1750055541931,3.97305,2613.1,2612.5,40.8]
[1750055541932,3.2078,2613.1,2612.5,40.8]
[1750055542234,0.76523,2613.1,2612.8,0.76531]
[1750055542431,0.76523,2613.1,2612.9,0.76528]
[1750055542737,0.76523,2613.1,2612.8,0.7653]
[1750055542943,2.02153,2613.1,2612.8,0.7653]
[1750055543147,2.02153,2613.1,2612.9,0.76529]
[1750055543440,0.76531,2612.9,2612.6,0.76536]
[1750055543930,4.4641,2613.1,2612.7,0.76534]
[1750055544441,5.22935,2613.1,2612.7,0.76534]
[1750055544636,5.22935,2613.1,2612.8,0.76531]
[1750055544839,4.4641,2613.1,2612.9,0.76528]
[1750055545045,4.4641,2613.1,2613.0,0.76526]
[1750055545337,4.4641,2613.1,2612.9,0.76527]
[1750055545539,5.22933,2613.1,2612.9,0.76527]
[1750055546042,5.22934,2613.1,2612.8,0.7653]
[1750055546234,4.4641,2613.1,2612.9,0.76529]
[1750055546539,5.22934,2613.1,2612.9,0.76527]
[1750055548344,5.22934,2613.1,2612.8,0.7653]
[1750055548537,11.73834,2613.1,2612.8,0.76529]
[1750055548739,11.73834,2613.1,2612.9,0.76529]
[1750055549043,10.9731,2613.1,2612.5,45.3551]
[1750055549340,10.9731,2613.1,2612.5,47.26857]
[1750055549543,10.9731,2613.1,2612.9,0.76527]
[1750055549735,10.9731,2613.1,2612.8,0.76531]
[1750055549939,0.76528,2613.0,2612.7,0.76533]
[1750055550137,1.99568,2613.0,2612.8,0.76532]
[1750055550340,2.65348,2613.0,2612.8,0.76532]
[1750055550644,1.8882,2613.0,2612.8,0.76532]
[1750055551045,1.8882,2613.0,2612.9,0.76529]
[1750055551641,2.65347,2613.0,2612.8,0.76531]
[1750055551951,1.8882,2613.0,2612.8,0.76531]
[1750055552538,1.8882,2613.0,2612.5,44.0078]
[1750055552733,0.76541,2612.5,2612.4,0.798]
[1750055552939,5.26986,2612.5,2612.4,0.798]
[1750055553138,5.26986,2612.5,2612.3,0.00574614]
[1750055553139,0.76544,2612.4,2612.3,0.00574614]
[1750055553340,2.65544,2612.4,2612.3,0.00574614]
[1750055553644,3.60411279,2612.4,2612.3,0.00574614]
[1750055555348,1.91369,2612.3,2611.8,40.8]
[1750055555644,0.76558,2611.9,2611.8,40.8]
[1750055555951,0.76561,2611.8,2611.7,0.76564]
[1750055556245,0.76561,2611.8,2611.6,0.76565]
[1750055556449,0.76561,2611.8,2611.7,40.8]
[1750055556645,0.7656,2611.9,2611.7,41.56564]
[1750055556949,6.51,2611.9,2611.8,0.76561]
[1750055557150,6.51,2611.9,2611.7,41.56562]
[1750055557354,1.3172,2611.8,2611.7,41.56562]
[1750055558441,2.08281,2611.8,2611.7,41.56564]
[1750055558650,1.3172,2611.8,2611.7,41.56564]
[1750055558851,0.00574614,2612.0,2611.7,40.8]
[1750055559047,6.51574614,2612.0,2611.9,0.76558]
[1750055559351,0.00574614,2612.0,2611.9,3.97338]
[1750055559556,1.3498,2612.5,2612.4,0.76544]
[1750055560147,3.2078,2612.7,2612.6,0.76538]
[1750055560353,3.2078,2612.7,2612.5,0.76538]
[1750055560645,3.2078,2612.7,2612.6,0.76538]
[1750055560851,8.53585614,2612.9,2612.6,0.76538]
[1750055561052,0.76533,2612.8,2612.6,0.76538]
[1750055561344,0.76535,2612.7,2612.3,0.6165]
[1750055561551,0.76535,2612.7,2612.4,0.76542]
[1750055561747,7.77054614,2612.9,2611.8,3.8718]
[1750055561748,0.76544,2612.4,2611.8,3.8718]
[1750055562051,0.76547,2612.3,2612.1,0.76551]
[1750055562251,0.76547,2612.3,2611.8,36.2396]
[1750055562547,1.99945,2612.4,2612.1,0.76551]
[1750055562744,1.99945,2612.4,2612.2,0.76549]
[1750055563143,1.99945,2612.4,2612.1,0.7655]
[1750055563348,1.234,2612.4,2612.2,0.76548]
[1750055564650,1.99944,2612.4,2612.2,0.76548]
[1750055564854,1.234,2612.4,2612.2,0.76548]
[1750055565047,1.99944,2612.4,2612.1,0.76551]
[1750055565246,1.99944,2612.4,2611.8,36.2396]
[1750055565660,3.2078,2612.5,2612.4,0.76544]
[1750055565851,3.2078,2612.5,2612.3,0.76545]
[1750055566052,3.2078,2612.5,2612.4,0.76544]
[1750055566254,3.2078,2612.5,2612.0,3.19565]
[1750055566555,3.2078,2612.5,2612.4,0.76544]
[1750055570155,0.00574614,2612.9,2612.8,0.76532]
[1750055570455,6.42074614,2612.9,2612.7,0.76533]
[1750055570655,0.00574614,2612.9,2612.8,0.76532]
[1750055572050,0.00574614,2612.9,2612.5,0.6494]
[1750055572350,0.00574614,2612.9,2612.8,0.76532]
[1750055574357,0.6725,2613.5,2613.4,0.76514]
[1750055575350,0.6725,2613.5,2613.2,0.00574614]
[1750055575657,0.6725,2613.5,2613.4,0.76514]
[1750055575959,0.6725,2613.5,2613.3,0.76516]
[1750055577146,0.6725,2613.5,2613.4,0.76514]
[1750055577351,9.6218,2613.6,2613.3,0.76515]
[1750055577554,9.6218,2613.6,2613.4,0.76513]
[1750055577754,0.00574614,2613.7,2613.6,0.76508]
[1750055578066,0.00574614,2613.7,2613.6,2.74948]
[1750055578651,3.2078,2614.1,2613.9,0.76498]
[1750055578857,9.6218,2614.1,2614.0,0.76496]
[1750055579359,3.2078,2614.1,2613.9,0.76497]
[1750055579550,3.2078,2614.1,2614.0,0.76496]
[1750055579859,7.05134614,2614.3,2613.7,1.3153]
[1750055580057,7.05134614,2614.3,2613.9,0.76497]
[1750055580258,7.05134614,2614.3,2613.8,3.2078]
[1750055580557,0.00574614,2614.3,2614.2,0.7649]
[1750055580760,3.2078,2614.9,2614.7,0.76474]
[1750055580952,3.2078,2614.9,2614.2,2.6683]
[1750055581258,23.146,2615.2,2614.6,3.2078]
[1750055581259,32.7668,2615.2,2614.6,3.2078]
[1750055581554,32.7668,2615.2,2614.7,0.661]
[1750055581759,32.77254614,2615.2,2615.0,0.76465]
[1750055582058,3.21354614,2615.2,2615.0,0.76465]
[1750055582258,3.21354614,2615.2,2615.1,0.76464]
[1750055582663,3.21354614,2615.2,2615.1,0.7925419]
[1750055583753,3.21354614,2615.2,2615.1,0.81848514]
[1750055583948,3.21354614,2615.2,2615.1,0.05384514]
[1750055585454,3.21354614,2615.2,2615.1,0.81848514]
[1750055585762,0.00574614,2615.2,2615.1,0.81848514]
[1750055586158,0.00574614,2615.2,2615.1,0.05384514]
[1750055587759,8.48260614,2615.2,2615.1,0.05384514]
[1750055588060,10.38915614,2615.2,2615.1,0.05384514]
[1750055589156,0.73796921,2615.0,2614.7,0.77050614]
[1750055589552,0.73796921,2615.0,2614.7,0.00574614]
[1750055589756,2.08965,2615.1,2614.8,0.76472]
[1750055589960,1.325,2615.1,2614.7,0.00574614]
[1750055590158,2.08966,2615.1,2614.7,0.77047614]
[1750055590563,2.08966,2615.1,2614.9,0.02605876]
[1750055590762,0.76467,2615.0,2614.9,0.02605876]
[1750055591069,2.70177,2615.0,2614.9,0.02605876]
[1750055592658,0.76473,2614.8,2614.7,0.00574614]
[1750055593570,1.42151,2614.9,2614.7,0.00574614]
[1750055593761,2.70071,2614.9,2614.7,0.00574614]
[1750055593962,0.76473,2614.8,2614.7,0.00574614]
[1750055594669,2.04393,2614.8,2614.7,0.00574614]
[1750055594874,4.62931,2614.9,2614.7,0.00574614]
[1750055595064,7.75351,2614.9,2614.7,3.10821936]
[1750055595562,1.42151,2614.9,2614.7,3.10821936]
[1750055595755,0.76471,2614.9,2614.7,3.10821936]
[1750055595962,0.76473,2614.8,2614.4,5.0889]
[1750055596160,0.6121,2615.0,2614.5,0.7648]
[1750055596367,0.6121,2615.0,2614.4,5.0889]
[1750055596368,0.7648,2614.6,2614.4,1.8811]
[1750055596562,4.4914,2614.9,2614.4,1.8811]
[1750055596563,0.76481,2614.5,2614.4,0.6511]
[1750055597064,0.76475,2614.8,2614.5,0.76481]
[1750055597269,7.09675,2614.8,2614.5,0.76481]
[1750055597464,0.76476,2614.7,2614.6,0.05275955]
[1750055599160,0.76484,2614.4,2614.3,40.80574614]
[1750055601272,0.76484,2614.4,2614.3,0.00574614]
[1750055602174,1.41344,2614.5,2614.3,0.00574614]
[1750055602373,0.10032337,2614.3,2614.2,41.5649]
[1750055603281,0.76485,2614.4,2614.2,41.46457663]
[1750055603483,0.76487,2614.3,2614.2,40.69967663]
[1750055603781,0.76486,2614.4,2614.2,40.69967663]
[1750055604184,6.332,2614.6,2614.2,40.69967663]
[1750055604185,0.73709633,2614.3,2614.2,40.69967663]
[1750055604683,0.76486,2614.4,2614.2,40.72466251]
[1750055604882,0.76487,2614.3,2614.2,40.72466251]
[1750055605781,0.76493,2614.1,2614.0,0.00574614]
[1750055605978,7.09693,2614.1,2614.0,0.00574614]
[1750055606680,7.77003,2614.1,2614.0,0.00574614]
[1750055607185,0.76502,2613.8,2613.7,3.2078]
[1750055608282,0.76502,2613.8,2613.7,3.416]
[1750055609376,0.76502,2613.8,2613.7,3.3107924]
[1750055610875,0.76502,2613.8,2613.7,3.33706461]
[1750055611273,0.76502,2613.8,2613.7,3.3107924]
[1750055611479,0.76502,2613.8,2613.7,3.36333682]
[1750055616788,0.76502,2613.8,2613.7,0.26074442]
[1750055616983,0.76502,2613.8,2613.5,0.00574614]
[1750055616984,0.76508,2613.6,2613.5,0.00574614]
[1750055617282,10.30588,2613.6,2613.5,0.03188248]
[1750055618080,11.61968,2613.6,2613.5,0.03188248]
[1750055619080,11.61968,2613.6,2613.5,0.05801882]
[1750055623792,5.28668,2613.6,2613.5,0.05801882]
[1750055623990,35.26368,2613.6,2613.5,0.05801882]
[1750055624791,37.54818066,2613.6,2613.5,0.05801882]
[1750055625086,0.76516,2613.3,2613.2,0.76517]
[1750055625293,0.76516,2613.4,2613.2,0.76517]
[1750055625491,0.73903818,2613.3,2613.2,0.76517]
[1750055625691,0.76516,2613.4,2613.3,0.76516]
[1750055626091,2.01433,2613.5,2613.4,0.76513]
[1750055626292,33.29933,2613.5,2613.4,0.76513]
[1750055626492,0.76513,2613.4,2613.3,0.76515]
[1750055626994,3.32932,2613.5,2613.3,0.76515]
[1750055627198,0.76513,2613.4,2613.3,0.76515]
[1750055627689,32.5342,2613.5,2613.2,0.76517]
[1750055627690,0.76516,2613.3,2613.2,0.76517]
[1750055627997,33.29933,2613.5,2613.3,0.76516]
[1750055628296,0.76513,2613.4,2613.3,0.76516]
[1750055628595,0.76513,2613.4,2613.2,0.76517]
[1750055629195,0.76513,2613.4,2613.3,0.76516]
[1750055629400,0.00574614,2613.8,2613.7,0.76505]
[1750055629596,0.00574614,2613.8,2613.7,3.04955066]
[1750055630698,0.00574614,2613.8,2613.7,0.76505]
[1750055631799,0.00574614,2613.8,2613.7,0.79104222]
[1750055633694,0.00574614,2613.8,2613.7,0.81696314]
[1750055635001,3.2078,2614.2,2614.1,0.76493]
[1750055635194,9.4628,2614.2,2614.1,0.76493]
[1750055635499,10.2277,2614.2,2614.0,0.76494]
[1750055635798,10.2277,2614.2,2614.1,0.05191314]
[1750055635999,3.2078,2614.2,2614.1,0.81684314]
[1750055636190,3.9727,2614.2,2614.1,0.05191314]
[1750055636393,3.2078,2614.2,2614.1,0.81684314]
[1750055636897,0.76487,2614.3,2614.1,41.61684314]
[1750055637099,0.76487,2614.3,2614.2,0.7649]
[1750055637394,0.87825296,2614.4,2614.3,0.76487]
[1750055637602,0.76488,2614.3,2614.2,0.76489]
[1750055637804,0.76488,2614.3,2614.2,0.81680314]
[1750055638103,3.04938066,2614.3,2614.2,0.81681314]
[1750055638399,5.31580027,2614.3,2614.2,0.81681314]
[1750055638600,4.38908066,2614.3,2614.2,0.81681314]
[1750055638799,5.31538909,2614.3,2614.2,0.81681314]
[1750055639002,5.31538909,2614.3,2614.2,0.05191314]
[1750055639199,5.31538909,2614.3,2614.2,0.81681314]
[1750055639404,6.255,2614.3,2614.2,0.84272987]
[1750055641304,7.01987,2614.3,2614.2,0.84272987]
[1750055641596,7.01987,2614.3,2614.2,0.8686466]
[1750055641801,6.255,2614.3,2614.2,0.74454243]
[1750055642202,7.01987,2614.3,2614.2,0.74454243]
[1750055642705,0.76487,2614.3,2614.2,0.74454243]
[1750055642898,7.13325296,2614.4,2614.3,0.76487]
[1750055643097,7.13325296,2614.4,2614.2,0.8686266]
[1750055643298,0.76487,2614.3,2614.2,0.8686266]
[1750055644001,7.02560614,2614.4,2614.3,0.76487]
[1750055644505,7.02560614,2614.4,2614.3,0.8686166]
[1750055644804,7.02560614,2614.4,2614.3,0.1037466]
[1750055645199,0.77060614,2614.4,2614.3,0.1037466]
[1750055645410,6.26074614,2614.4,2614.3,0.8686166]
[1750055646510,0.77058614,2614.4,2614.3,0.8686166]
[1750055646808,6.26074614,2614.4,2614.3,0.8686166]
[1750055647208,6.26074614,2614.4,2614.3,0.89452599]
[1750055647710,7.02558614,2614.4,2614.3,0.89452599]
[1750055647909,0.00574614,2614.4,2614.3,0.89452599]
[1750055648297,0.00574614,2614.4,2614.3,0.92043538]
[1750055648502,6.255,2614.7,2614.3,4.68846538]
[1750055648701,6.255,2614.7,2614.6,0.76478]
[1750055649309,2.09322,2614.9,2614.6,0.15556538]
[1750055649510,2.09322,2614.9,2614.6,0.92032538]
[1750055649807,0.76476,2614.7,2614.6,0.15556538]
[1750055650209,3.97256,2614.7,2614.6,0.15556538]
[1750055650410,28.96546,2614.7,2614.6,0.15556538]
[1750055651003,0.76478,2614.6,2614.5,0.00574614]
[1750055651208,10.57718066,2614.6,2614.5,0.00574614]
[1750055652811,8.29268,2614.6,2614.5,0.00574614]
[1750055653611,9.21714323,2614.6,2614.5,0.00574614]
[1750055654105,9.21714323,2614.6,2614.5,0.03163561]
[1750055655811,32.92214323,2614.6,2614.5,0.05752508]
[1750055656013,0.76487,2614.3,2614.2,0.76489]
[1750055657418,0.7649,2614.2,2614.0,2.08659614]
[1750055657614,0.6682,2614.3,2614.0,2.08659614]
[1750055657912,0.6682,2614.3,2614.1,0.76493]
[1750055658212,1.43309,2614.3,2614.1,0.76493]
[1750055658511,0.7649,2614.2,2614.0,2.08658614]
[1750055658710,0.7649,2614.2,2614.1,0.76493]
[1750055658912,1.43309,2614.3,2614.1,0.76493]
[1750055659212,0.76493,2614.1,2614.0,0.67584614]
[1750055659519,0.76493,2614.1,2614.0,0.00574614]
[1750055659816,0.76502,2613.8,2613.7,0.6782]
[1750055660016,0.76505,2613.7,2613.6,2.26151092]
[1750055660211,5.48390132,2614.5,2614.3,0.76484]
[1750055660412,0.92669214,2614.4,2614.3,0.76487]
[1750055660717,1.2902,2614.8,2614.6,0.76477]
[1750055660917,0.6263,2614.8,2614.4,0.6782]
[1750055661120,33.92323614,2615.0,2614.4,4.90961092]
[1750055661314,33.92323614,2615.0,2614.8,0.76472]
[1750055661617,10.21823614,2615.0,2614.7,0.76473]
[1750055662011,10.21823614,2615.0,2614.8,0.02588213]
[1750055662617,9.45354614,2615.0,2614.8,0.02588213]
[1750055662919,9.45354614,2615.0,2614.9,0.02588213]
[1750055663419,9.45354614,2615.0,2614.9,0.05176006]
[1750055664222,9.45354614,2615.0,2614.9,0.81646006]
[1750055664422,3.21354614,2615.0,2614.9,0.81646006]
[1750055664718,0.00574614,2615.0,2614.9,0.81646006]
[1750055665114,3.2078,2615.4,2615.3,0.76458]
[1750055665314,3.2078,2615.4,2615.3,0.05176006]
[1750055665616,3.2078,2615.4,2615.3,40.85176006]
[1750055665921,3.2078,2615.4,2615.3,41.61634006]
[1750055669123,3.2078,2615.4,2615.3,41.62799291]
[1750055669320,3.2078,2615.4,2615.3,0.82799291]
[1750055669523,3.97235,2615.4,2615.3,0.06341291]
[1750055669819,5.23575,2615.4,2615.3,0.06341291]
[1750055670217,3.2078,2615.4,2615.3,0.82799291]
[1750055670618,3.2078,2615.4,2615.3,0.06341291]
[1750055670923,3.2078,2615.4,2615.3,0.82799291]
[1750055671422,0.76455,2615.4,2615.3,0.06341291]
[1750055672019,7.00354,2615.5,2615.3,0.82799291]
[1750055672218,6.239,2615.5,2615.3,0.06341291]
[1750055672415,0.76455,2615.4,2615.3,0.06341291]
[1750055673022,3.04567324,2615.4,2615.3,0.06341291]
[1750055673217,4.36587324,2615.4,2615.3,0.06341291]
[1750055673426,5.29255,2615.4,2615.3,0.06341291]
[1750055673626,3.97235,2615.4,2615.3,0.06341291]
[1750055673826,10.21135,2615.4,2615.3,0.06341291]
[1750055674727,3.97235,2615.4,2615.3,0.82799291]
[1750055674921,0.00574614,2615.6,2615.5,0.76452]
[1750055675122,0.77023614,2615.6,2615.5,0.06341291]
[1750055676329,0.00574614,2615.6,2615.5,0.06341291]
[1750055676528,0.00574614,2615.6,2615.5,0.82793291]
[1750055677530,0.00574614,2615.6,2615.5,1.48323291]
[1750055679236,0.00574614,2615.6,2615.5,0.71871291]
[1750055679733,0.00574614,2615.6,2615.5,1.48323291]
[1750055682930,0.00574614,2615.6,2615.5,4.69103291]
[1750055683537,0.00574614,2615.6,2615.5,1.48323291]
[1750055683835,0.00574614,2615.6,2615.5,0.71871291]
[1750055684034,0.00574614,2615.6,2615.5,1.48323291]
[1750055684231,3.8488,2616.0,2615.8,0.76442]
[1750055684432,4.607,2616.3,2615.9,2.28112324]
[1750055684627,0.76433,2616.2,2616.0,0.6614]
[1750055684835,3.2078,2616.3,2615.6,0.76447]
[1750055684836,8.51612324,2616.1,2615.6,0.76447]
[1750055685031,0.76441,2615.9,2615.7,40.8]
[1750055685234,0.76441,2615.9,2615.8,0.06341291]
[1750055685538,1.39929,2616.0,2615.8,0.06341291]
[1750055685934,0.76441,2615.9,2615.8,0.06341291]
[1750055686838,1.3993,2616.0,2615.8,0.06341291]
[1750055687138,0.70101709,2615.8,2615.7,40.8]
[1750055687539,1.39222,2615.9,2615.7,40.8]
[1750055687740,0.76443,2615.8,2615.7,40.8]
[1750055688239,1.39223,2615.9,2615.7,40.8]
[1750055688431,1.39223,2615.9,2615.7,41.56446]
[1750055689135,0.76443,2615.8,2615.7,40.8]
[1750055689329,0.76443,2615.8,2615.6,0.76449]
[1750055689836,4.23762324,2615.9,2615.5,40.80573493]
[1750055690040,0.76449,2615.6,2615.5,40.80573493]
[1750055690240,2.09318,2615.7,2615.5,41.57025493]
[1750055690442,0.76449,2615.6,2615.5,40.80573493]
[1750055690942,2.09318,2615.7,2615.5,41.57025493]
[1750055691242,0.76449,2615.6,2615.5,40.80573493]
[1750055691540,0.76449,2615.6,2615.5,0.00573493]
[1750055697644,2.01179,2615.6,2615.5,0.00573493]
[1750055698551,0.76459,2615.3,2615.1,2.26151092]
[1750055698743,0.76459,2615.3,2615.1,3.66262092]
[1750055698944,0.76459,2615.3,2615.1,1.40112]
[1750055699340,0.76459,2615.3,2615.1,0.6365]
[1750055700347,0.76461,2615.2,2615.1,0.6365]
[1750055701752,0.76467,2615.0,2614.9,5.47504585]
[1750055701954,0.76467,2615.0,2614.9,3.21353493]
[1750055702143,0.76467,2615.0,2614.9,0.00573493]
[1750055702650,2.94943932,2615.0,2614.9,0.00573493]
[1750055703041,6.15723932,2615.0,2614.9,0.00573493]
[1750055703241,0.76484,2614.4,2614.3,3.2078]
[1750055703647,0.76484,2614.4,2614.3,44.0078]
[1750055703854,0.76493,2614.1,2614.0,2.26151092]
[1750055704048,2.28112324,2614.2,2613.8,0.6718]
[1750055704255,0.76496,2614.0,2613.9,40.8]
[1750055704554,0.76496,2614.0,2613.9,42.31565147]
[1750055704754,0.76496,2614.0,2613.9,40.8]
[1750055705549,10.71303493,2614.3,2613.9,41.56499]
[1750055705550,0.76494,2614.1,2613.9,41.56499]
[1750055705756,0.76494,2614.1,2613.9,40.8]
[1750055705950,0.76496,2614.0,2613.9,40.8]
[1750055706749,0.76495,2614.1,2613.9,40.8]
[1750055707254,10.71303493,2614.3,2613.9,40.8]
[1750055707454,0.76495,2614.1,2613.9,40.8]
[1750055707958,0.76492,2614.2,2613.9,41.56499]
[1750055708253,10.71303493,2614.3,2613.9,41.56499]
[1750055708254,0.00573493,2614.3,2614.2,0.7649]
[1750055708558,4.60318,2615.0,2614.7,0.76475]
[1750055708750,4.60318,2615.0,2614.8,0.6601]
[1750055708950,4.60318,2615.0,2614.8,41.4601]
[1750055709452,6.11962324,2615.0,2614.4,0.6685]
[1750055709649,0.76482,2614.5,2614.3,0.76487]
[1750055709843,3.2078,2614.7,2614.3,0.76487]
[1750055709844,0.76481,2614.6,2614.3,0.76487]
[1750055710051,2.06871,2614.6,2614.4,40.8]
[1750055710250,2.06871,2614.6,2614.4,41.56484]
[1750055710961,1.3039,2614.6,2614.4,40.8]
[1750055711159,3.8354,2614.7,2614.5,0.76481]
[1750055711862,3.8385,2615.0,2614.4,43.08112324]
[1750055712167,0.76473,2614.8,2614.6,0.76478]
[1750055712461,6.11962324,2615.0,2614.5,0.6191]
[1750055712661,0.76473,2614.8,2614.5,1.3839]
[1750055712962,0.76471,2614.9,2614.7,0.76474]
[1750055713154,0.76473,2614.8,2614.6,0.6632]
[1750055713358,0.76472,2614.9,2614.7,0.76474]
[1750055714567,0.76473,2614.8,2614.6,1.42797]
[1750055715460,0.76474,2614.8,2614.6,1.42797]
[1750055715957,0.76472,2614.9,2614.7,0.76474]
[1750055716256,3.2078,2615.0,2614.8,2.28112324]
[1750055716455,3.2078,2615.0,2614.9,0.7647]
[1750055716860,3.97249,2615.0,2614.6,8.94057471]
[1750055717062,3.97249,2615.0,2614.7,0.76473]
[1750055717258,3.97249,2615.0,2614.6,6.15212324]
[1750055717465,3.97249,2615.0,2614.8,0.76471]
[1750055717667,3.2078,2615.0,2614.8,0.76471]
[1750055717967,3.97247,2615.0,2614.7,0.76474]
[1750055718161,3.2078,2615.0,2614.6,6.65945147]
[1750055718466,3.97248,2615.0,2614.8,0.76473]
[1750055718661,3.2078,2615.0,2614.7,0.76475]
[1750055718859,3.2078,2615.0,2614.8,0.76472]
[1750055719466,3.2078,2615.0,2614.9,0.7647]
[1750055719676,3.2078,2615.0,2614.8,0.76472]
[1750055719876,3.97248,2615.0,2614.7,0.76474]
[1750055720069,5.28588,2615.0,2614.7,0.76474]
[1750055720271,5.28589,2615.0,2614.7,0.76474]
[1750055720473,4.5212,2615.0,2614.6,5.38665147]
[1750055720673,4.5212,2615.0,2614.9,0.7647]
[1750055720979,3.2078,2615.0,2614.9,0.7647]
[1750055722076,3.2078,2615.0,2614.8,0.76471]
[1750055722380,3.2078,2615.0,2614.9,0.7647]
[1750055725985,0.00573493,2615.2,2615.1,0.76464]
[1750055729582,0.00573493,2615.2,2615.1,2.28029147]
[1750055729880,1.2931,2615.7,2615.6,0.76449]
[1750055730279,1.2931,2615.7,2615.6,1.89879385]
[1750055731082,0.6561,2615.7,2615.6,1.89879385]
[1750055731283,0.00573493,2615.9,2615.8,0.76443]
[1750055732283,1.36383493,2615.9,2615.8,0.76443]
[1750055732484,1.36383493,2615.9,2615.7,0.76445]
[1750055732685,1.36383493,2615.9,2615.8,0.76443]
[1750055732981,3.2078,2616.3,2615.8,6.62322709]
[1750055733180,0.76436,2616.1,2615.9,0.7644]
[1750055733380,3.04548324,2616.1,2615.9,0.7644]
[1750055733580,1.3232,2616.0,2615.9,0.7644]
[1750055736687,1.3232,2616.0,2615.6,45.62181324]
[1750055736688,6.88193493,2616.2,2616.0,0.76435]
[1750055736989,10.46245817,2616.2,2615.6,41.4295]
[1750055737386,0.76436,2616.1,2615.9,0.7644]
[1750055737690,2.06376,2616.1,2615.9,0.7644]
[1750055737884,1.2994,2616.1,2616.0,0.76438]